bitfinex/quotes_ETHUSD_20250508
["timestamp","ask_amount","ask_price","bid_price","bid_amount"]
[1746706859700,0.8215,1974.7,1974.1,0.13599786]
[1746706859871,5.06491694,1974.4,1974.1,0.13599786]
[1746706860067,5.06471196,1974.5,1974.1,5.201378]
[1746706860371,5.06466218,1974.5,1974.1,5.20141888]
[1746706860766,5.06377671,1974.9,1974.5,5.06441618]
[1746706861009,5.06386845,1974.8,1974.6,0.13376873]
[1746706861212,10.12,1975.3,1974.6,0.13376873]
[1746706861213,0.8215,1976.0,1974.9,10.127644]
[1746706861371,5.0625835,1975.3,1974.9,5.0634017]
[1746706861567,5.06240263,1975.4,1975.0,0.13198623]
[1746706861773,5.06240263,1975.4,1975.0,5.19516207]
[1746706862411,5.06240263,1975.4,1975.0,0.13198623]
[1746706862412,5.06283943,1975.2,1975.0,0.13198623]
[1746706862738,8.7434,1976.2,1975.4,5.06211329]
[1746706862999,5.0612515,1975.8,1975.5,0.12975912]
[1746706863206,5.06063307,1976.1,1975.7,5.06143781]
[1746706863502,5.06104301,1975.9,1975.5,5.1916653]
[1746706863705,0.7874,1976.2,1975.8,0.1284234]
[1746706863863,0.430697,1976.5,1975.1,3.826]
[1746706863864,0.430697,1976.5,1975.9,5.06077422]
[1746706864070,0.430697,1976.5,1975.4,5.06226587]
[1746706864071,0.430697,1976.5,1976.2,5.06009502]
[1746706864385,5.05970451,1976.4,1976.3,0.1261981]
[1746706864603,5.05970451,1976.4,1975.8,0.4074923]
[1746706864781,0.430697,1976.5,1975.8,0.4074923]
[1746706864978,5.06098486,1975.9,1975.8,0.4074923]
[1746706865182,5.06098486,1975.9,1975.5,0.68228038]
[1746706865501,5.06115285,1975.9,1975.5,0.68228038]
[1746706865705,10.550697,1976.5,1975.7,5.06131912]
[1746706866013,10.550697,1976.5,1975.3,5.0624191]
[1746706866014,5.05996053,1976.3,1975.3,5.0624191]
[1746706866177,5.06121366,1975.9,1975.5,5.0619423]
[1746706866379,5.06134281,1975.8,1975.4,5.06220542]
[1746706866702,5.06142967,1975.8,1975.3,5.06230752]
[1746706867013,5.06112496,1975.9,1975.4,5.062052]
[1746706867312,5.06088562,1976.0,1975.5,5.06188156]
[1746706867466,13.01563013,1976.1,1975.6,5.0615928]
[1746706867665,0.430697,1976.5,1975.9,5.06082358]
[1746706867915,5.49024242,1976.5,1976.1,5.06043912]
[1746706868211,5.49024242,1976.5,1975.9,5.06084548]
[1746706868212,5.05973538,1976.4,1975.9,5.06084548]
[1746706868678,0.430697,1976.5,1975.6,11.64775738]
[1746706868878,5.05970451,1976.4,1975.6,6.08]
[1746706869098,5.06139294,1975.8,1975.5,0.7698]
[1746706869420,5.06124101,1975.8,1974.9,5.19008105]
[1746706869705,5.06316932,1975.1,1974.9,5.19008105]
[1746706869909,5.06294284,1975.2,1974.9,5.19008105]
[1746706870416,5.06222926,1975.5,1974.8,0.7821]
[1746706870417,5.06329479,1975.0,1974.8,0.7821]
[1746706870705,5.06318323,1975.1,1974.8,0.7821]
[1746706870919,5.06283315,1975.2,1974.6,0.05063704]
[1746706871079,5.06166839,1975.7,1975.1,5.06292912]
[1746706871283,8.7049,1975.9,1975.1,0.50629291]
[1746706871481,7.953,1975.9,1975.5,5.06193763]
[1746706871683,1.257897,1976.5,1975.9,5.06074869]
[1746706871998,0.430697,1976.5,1975.7,5.06144412]
[1746706872203,5.49030665,1976.5,1976.0,5.06059245]
[1746706872520,0.430697,1976.5,1976.3,5.05982233]
[1746706872819,0.430697,1976.5,1976.4,5.23491562]
[1746706872975,0.430697,1976.5,1976.4,39.99968462]
[1746706873170,0.02691856,1976.5,1976.4,45.25934076]
[1746706873376,0.15625,1976.8,1976.7,8.83013661]
[1746706873619,0.15625,1976.8,1976.7,10.01626632]
[1746706873776,0.005,1976.9,1976.8,5.05868069]
[1746706874096,0.005,1976.9,1976.8,40.35214138]
[1746706874297,0.022,1977.8,1977.2,3.0]
[1746706874520,0.022,1977.8,1977.3,5.05733924]
[1746706874836,5.05639211,1977.7,1977.4,0.05055597]
[1746706875040,0.022,1977.8,1977.7,4.395104]
[1746706875243,0.022,1977.8,1977.5,0.11779622]
[1746706875405,0.022,1977.8,1977.1,0.7712]
[1746706875593,5.05637862,1977.7,1977.1,0.7712]
[1746706875795,5.0570122,1977.5,1977.1,0.7712]
[1746706876039,0.022,1977.8,1977.1,0.7712]
[1746706876339,0.7754,1977.7,1976.8,0.7712]
[1746706876498,5.05783931,1977.2,1976.8,0.7712]
[1746706876693,5.05757813,1977.3,1976.8,0.7712]
[1746706876932,5.05704146,1977.5,1976.8,0.7712]
[1746706877144,5.05904824,1976.7,1976.4,0.8004]
[1746706877435,5.05910806,1976.7,1976.4,0.8004]
[1746706877633,5.05812438,1977.1,1976.5,5.0592174]
[1746706877793,5.05779766,1977.2,1976.7,5.05893493]
[1746706877989,5.05748581,1977.3,1976.8,5.05854467]
[1746706878188,0.7758,1977.5,1976.6,0.05058969]
[1746706878427,5.0585854,1976.9,1976.4,0.8004]
[1746706878634,5.05924762,1976.6,1976.3,5.59437128]
[1746706878804,5.05824875,1977.0,1976.3,5.19008105]
[1746706878805,5.05958525,1976.5,1976.3,5.19008105]
[1746706879005,5.05970451,1976.4,1976.3,5.19008105]
[1746706879801,5.86570451,1976.4,1976.3,5.19008105]
[1746706880007,5.86570451,1976.4,1975.3,0.816]
[1746706880008,5.06172122,1975.7,1975.3,0.816]
[1746706880434,5.05996053,1976.3,1974.9,0.816]
[1746706880435,7.948,1975.9,1974.9,0.816]
[1746706880738,0.806,1975.8,1974.6,1.248552]
[1746706880907,5.06205208,1975.5,1974.7,0.05062481]
[1746706881111,5.06149719,1975.7,1974.7,0.05062481]
[1746706881437,5.06291907,1975.2,1974.7,5.11454799]
[1746706881641,8.754,1975.8,1974.7,0.05063183]
[1746706881810,10.12441258,1975.5,1975.0,5.06317585]
[1746706882021,5.06238882,1975.4,1974.9,5.11398912]
[1746706882225,8.754,1975.8,1974.6,0.816]
[1746706882426,5.06237441,1975.4,1975.0,5.06328617]
[1746706882621,5.06291033,1975.2,1974.6,5.88024373]
[1746706882848,8.754,1975.8,1974.9,5.06354131]
[1746706883167,5.06149719,1975.7,1975.1,5.06290446]
[1746706883322,5.06188987,1975.6,1975.1,5.06303047]
[1746706883528,5.06214876,1975.5,1975.2,0.1153445]
[1746706883711,5.06196657,1975.6,1975.2,0.1153445]
[1746706884005,5.06211143,1975.5,1975.3,0.11489904]
[1746706884206,5.06212763,1975.5,1975.0,5.1137595]
[1746706884447,13.81724503,1975.8,1975.1,0.11579001]
[1746706884651,5.06192946,1975.6,1975.1,5.17881242]
[1746706884866,5.06277845,1975.2,1975.1,0.11579001]
[1746706885227,5.06201187,1975.5,1974.6,0.816]
[1746706885428,13.81736988,1975.8,1974.6,5.88021661]
[1746706885758,13.81736988,1975.8,1974.7,5.11447016]
[1746706885759,5.0629057,1975.2,1974.7,5.11447016]
[1746706885966,5.06256688,1975.3,1974.7,0.05063346]
[1746706886272,5.06193977,1975.6,1975.2,5.06266774]
[1746706886468,5.86735455,1975.8,1975.3,5.06233157]
[1746706886684,5.06246343,1975.4,1974.8,5.06367031]
[1746706886839,5.06286435,1975.2,1974.6,6.46819671]
[1746706887032,5.06268445,1975.3,1974.8,5.06368952]
[1746706887371,5.06200961,1975.5,1974.7,0.11783783]
[1746706887667,5.06329113,1975.0,1974.8,0.11739213]
[1746706888057,5.06289243,1975.2,1974.2,0.8047]
[1746706888058,5.06412129,1974.7,1974.2,0.8047]
[1746706888352,5.06548827,1974.2,1973.8,5.87091089]
[1746706888552,5.06354752,1974.9,1973.9,0.05065437]
[1746706888878,5.06652993,1973.8,1973.4,0.7973]
[1746706889036,7.843,1974.2,1973.4,0.7973]
[1746706889364,5.06674794,1973.7,1973.4,0.7973]
[1746706889565,5.0652545,1974.3,1973.4,0.7973]
[1746706889566,0.8295,1974.5,1973.4,5.86459319]
[1746706889768,0.8295,1974.5,1973.5,5.65347039]
[1746706889769,5.0656826,1974.1,1973.5,5.65347039]
[1746706889966,5.06651262,1973.8,1973.4,0.7973]
[1746706890165,5.06612129,1973.9,1973.4,0.7973]
[1746706890373,5.06612129,1973.9,1973.4,5.86459414]
[1746706890679,7.843,1974.4,1973.4,0.7973]
[1746706890867,5.06661602,1973.8,1973.4,0.7973]
[1746706891068,5.06665107,1973.7,1973.2,5.0677387]
[1746706891254,5.06644218,1973.8,1973.2,6.16177684]
[1746706891456,7.845,1973.7,1973.1,5.0680211]
[1746706891656,7.845,1973.7,1972.7,5.06902676]
[1746706891968,5.06726121,1973.5,1973.1,5.06814505]
[1746706892169,5.067527,1973.4,1972.9,5.06843768]
[1746706892374,5.06703082,1973.6,1973.0,5.06832484]
[1746706892673,5.06725088,1973.5,1973.1,5.06815509]
[1746706892838,5.06755726,1973.4,1973.0,5.06839291]
[1746706893041,5.06617987,1973.9,1972.9,0.55752495]
[1746706893372,5.86429738,1973.4,1972.9,5.06850314]
[1746706893556,5.06701596,1973.6,1973.1,5.06801638]
[1746706893557,7.845,1973.6,1973.1,5.06801638]
[1746706893732,12.91190185,1973.6,1972.9,0.05068015]
[1746706893934,5.86360788,1973.7,1972.9,0.05068015]
[1746706894129,5.86360788,1973.7,1973.2,5.06779498]
[1746706894130,12.91390136,1973.6,1973.2,5.06779498]
[1746706894361,5.06714769,1973.5,1973.1,5.06809309]
[1746706894570,5.06714769,1973.5,1972.9,0.05068015]
[1746706894772,7.847,1973.6,1973.2,5.06776356]
[1746706894950,7.847,1973.6,1973.3,5.06757656]
[1746706895351,7.847,1973.6,1973.2,5.57453203]
[1746706895551,0.7977,1974.0,1973.2,0.55745291]
[1746706895750,5.06628714,1973.9,1973.4,5.06737873]
[1746706895973,5.06658439,1973.8,1973.3,5.067551]
[1746706896270,5.06658439,1973.8,1973.2,5.06777755]
[1746706896440,5.06663033,1973.7,1973.3,5.06752877]
[1746706896635,5.06646936,1973.8,1973.2,5.06781661]
[1746706896836,10.13358107,1973.7,1973.2,5.57454889]
[1746706897069,7.847,1973.9,1973.2,0.50678166]
[1746706897393,5.06710745,1973.6,1973.1,5.06798911]
[1746706897597,5.06710745,1973.6,1973.2,5.06789441]
[1746706898205,5.06651374,1973.8,1973.0,8.06838728]
[1746706898387,5.06648721,1973.8,1973.3,5.06751659]
[1746706898696,5.06685179,1973.7,1973.3,5.06753542]
[1746706898884,10.13307421,1973.8,1973.3,5.06744138]
[1746706899088,5.06703831,1973.6,1973.2,5.06774725]
[1746706899304,5.06703831,1973.6,1973.2,5.06769906]
[1746706899467,5.06679022,1973.7,1973.2,5.06769906]
[1746706899668,5.06680303,1973.7,1973.2,5.06769906]
[1746706899869,5.06679709,1973.7,1973.2,5.06769906]
[1746706900069,5.06673059,1973.7,1973.3,5.06747641]
[1746706900269,5.06650379,1973.8,1973.4,5.06725897]
[1746706900515,12.91534661,1973.9,1973.4,5.06721623]
[1746706900684,5.06649082,1973.8,1973.4,5.06730453]
[1746706901001,0.7977,1974.0,1973.6,5.06667197]
[1746706901205,0.7977,1974.0,1973.4,5.11801775]
[1746706901369,5.06611277,1973.9,1973.2,12.4277482]
[1746706901569,0.7977,1974.0,1973.2,0.7732]
[1746706901793,5.06686843,1973.7,1973.3,5.06754408]
[1746706902003,5.86355801,1974.0,1973.1,5.06798274]
[1746706902306,5.067299,1973.5,1973.2,0.11702613]
[1746706902512,5.06611277,1973.9,1973.2,0.11702613]
[1746706902717,5.06636943,1973.8,1972.6,6.9118]
[1746706903031,5.06843925,1973.0,1972.6,5.06929994]
[1746706903172,5.06843925,1973.0,1972.7,0.11925814]
[1746706903678,5.06816684,1973.1,1972.7,0.11925814]
[1746706903885,5.06893755,1972.8,1972.7,0.11925814]
[1746706904204,0.7687,1973.1,1972.5,5.06947581]
[1746706904375,5.06858946,1973.0,1972.6,5.17883089]
[1746706904579,5.06868158,1972.9,1972.6,0.1094717]
[1746706904772,5.06876949,1972.9,1972.6,0.1094717]
[1746706905091,5.0691945,1972.7,1972.6,0.1094717]
[1746706905500,5.07018303,1972.4,1972.0,5.07095856]
[1746706905715,5.0691945,1972.7,1972.6,0.11287478]
[1746706906011,5.06987748,1972.5,1972.1,5.07059733]
[1746706906195,5.07032354,1972.3,1972.0,1.19589586]
[1746706906401,5.07038773,1972.3,1971.7,11.15163188]
[1746706906586,5.07007238,1972.4,1971.8,6.18653698]
[1746706906918,0.7926,1972.5,1972.2,5.07034874]
[1746706907074,0.7926,1972.5,1971.9,3.0]
[1746706907269,0.7926,1972.5,1972.1,5.07053997]
[1746706907516,7.592,1972.5,1972.2,5.07037829]
[1746706907679,7.592,1972.6,1972.2,5.07033198]
[1746706907879,12.66155078,1972.6,1972.2,5.07033198]
[1746706908081,7.592,1972.6,1971.9,8.07122356]
[1746706908405,5.06999449,1972.4,1971.9,5.07109346]
[1746706908607,5.06981165,1972.5,1972.0,5.07099263]
[1746706908908,5.07034604,1972.3,1971.9,5.07123632]
[1746706909087,12.66149503,1972.6,1971.8,9.18645463]
[1746706909291,5.07018372,1972.4,1971.9,5.07119968]
[1746706909497,5.07027322,1972.3,1971.8,9.18659885]
[1746706909698,12.66148519,1972.6,1971.9,5.07115756]
[1746706909897,5.07066257,1972.2,1971.8,4.11516319]
[1746706910231,5.07097346,1972.1,1971.6,5.83817871]
[1746706910516,5.07100619,1972.0,1971.7,3.0]
[1746706910695,7.594,1972.0,1971.3,5.8844862]
[1746706911020,12.66541923,1971.9,1971.5,3.0]
[1746706911317,12.66541923,1971.9,1971.5,5.07218176]
[1746706911520,12.66541923,1971.9,1971.5,8.07218176]
[1746706911725,7.596,1971.9,1971.7,5.07167758]
[1746706911889,7.596,1972.1,1971.8,5.07150826]
[1746706912093,7.596,1972.1,1971.8,5.07146077]
[1746706912490,5.8792898,1972.4,1971.8,4.01430562]
[1746706912724,5.07031665,1972.3,1972.0,3.0]
[1746706912935,5.87929181,1972.4,1971.9,3.0]
[1746706913138,5.07034947,1972.3,1971.9,8.07112265]
[1746706913433,5.07091456,1972.1,1971.7,8.07165349]
[1746706913734,7.596,1972.2,1971.7,8.87892024]
[1746706913929,7.596,1972.2,1971.8,5.07140429]
[1746706914130,5.070743,1972.1,1971.7,3.0]
[1746706914293,12.66672864,1972.2,1971.7,8.07167291]
[1746706914502,5.07088818,1972.1,1971.7,8.07167291]
[1746706914849,12.66664067,1972.2,1971.7,8.07167973]
[1746706915056,7.596,1972.2,1971.7,8.07155617]
[1746706915198,5.07117131,1972.0,1971.3,1.40024862]
[1746706915398,5.07117131,1972.0,1971.7,3.0]
[1746706915704,5.07088958,1972.1,1971.7,8.07176136]
[1746706915917,7.596,1972.2,1971.4,3.0]
[1746706916227,5.07085209,1972.1,1971.5,8.37222906]
[1746706916429,5.07073677,1972.1,1971.3,1.67640669]
[1746706916631,5.07091452,1972.1,1971.4,0.05072375]
[1746706916829,5.0715236,1971.8,1971.4,5.12301852]
[1746706917127,5.0715236,1971.8,1971.4,8.07243101]
[1746706917328,5.07099391,1972.0,1971.5,0.12067594]
[1746706917520,5.07202272,1971.6,1971.5,0.12067594]
[1746706917719,5.0717754,1971.7,1971.5,0.12067594]
[1746706917922,5.07205387,1971.6,1971.3,5.0725957]
[1746706918245,5.07165598,1971.8,1971.3,8.07279338]
[1746706918399,5.07189008,1971.7,1971.4,0.12112304]
[1746706918604,5.07125107,1971.9,1971.4,0.12112304]
[1746706918801,5.07211452,1971.6,1971.2,5.072956]
[1746706919134,5.07182422,1971.7,1971.3,0.12157019]
[1746706919313,5.07182422,1971.7,1971.3,5.19434695]
[1746706919509,5.07100811,1972.0,1971.3,5.19434695]
[1746706919510,12.66810767,1972.0,1971.3,0.64100488]
[1746706919715,0.8134,1972.1,1971.7,5.07158727]
[1746706919910,12.66753305,1972.2,1971.6,3.0]
[1746706920118,5.07123761,1972.0,1971.8,0.11924632]
[1746706920447,5.88349998,1972.4,1971.9,5.19003527]
[1746706920739,5.0699515,1972.5,1971.9,3.1187994]
[1746706920941,8.3618,1972.7,1972.0,0.36259047]
[1746706921125,5.07036136,1972.3,1971.9,8.19000587]
[1746706921326,5.07036136,1972.3,1971.9,8.07120647]
[1746706921526,5.07049731,1972.2,1972.0,0.11941458]
[1746706921728,5.07060394,1972.2,1972.0,0.11941458]
[1746706921940,5.0703159,1972.3,1972.0,0.11941458]
[1746706922146,5.0703159,1972.3,1971.9,8.07124545]
[1746706922347,5.0703159,1972.3,1972.1,0.11914478]
[1746706922551,10.14077689,1972.3,1972.0,0.11941455]
[1746706922733,5.0703159,1972.3,1972.2,0.11852083]
[1746706922938,5.0703159,1972.3,1972.1,0.11914478]
[1746706922939,5.88337966,1972.2,1972.1,0.11914478]
[1746706923158,5.07073677,1972.1,1971.7,3.0]
[1746706923451,5.0710119,1972.0,1971.8,0.12057416]
[1746706924048,5.07125107,1971.9,1971.8,0.12057416]
[1746706924247,7.34,1972.1,1971.8,0.12057416]
[1746706924447,12.41089278,1972.1,1971.6,8.07185377]
[1746706924618,5.07099653,1972.0,1971.9,0.12021575]
[1746706924943,5.07043759,1972.3,1971.6,0.05071842]
[1746706925152,12.41006959,1972.4,1972.0,5.07088343]
[1746706925322,5.07067764,1972.2,1971.8,3.0]
[1746706925523,5.07047966,1972.2,1972.1,0.11918762]
[1746706925718,7.34,1972.4,1971.8,3.0]
[1746706925913,5.07047966,1972.2,1972.1,0.11936474]
[1746706926146,12.40997711,1972.4,1971.5,5.07225897]
[1746706926313,5.07047966,1972.2,1972.1,0.11936474]
[1746706926514,10.96118864,1971.9,1971.5,8.07218401]
[1746706926727,5.0716881,1971.8,1971.4,8.07244984]
[1746706926930,5.0716881,1971.8,1971.6,0.12124536]
[1746706927159,5.0716881,1971.8,1971.5,0.12204681]
[1746706927359,5.0716881,1971.8,1971.7,0.12124119]
[1746706927530,5.0716881,1971.8,1971.6,0.12168827]
[1746706927855,5.07150826,1971.8,1971.7,0.12124119]
[1746706928324,5.07213701,1971.6,1971.3,3.0]
[1746706928521,5.07213701,1971.6,1971.3,3.41028159]
[1746706929124,7.34,1971.8,1971.4,5.0723914]
[1746706929340,7.34,1971.8,1971.5,8.07227989]
[1746706929561,7.34,1971.8,1971.5,8.0721274]
[1746706929716,5.07117636,1972.0,1971.6,5.07191518]
[1746706929918,5.07117636,1972.0,1971.6,5.07187336]
[1746706930142,5.07114234,1972.0,1971.7,3.0]
[1746706930360,17.4826983,1972.1,1971.7,8.07168309]
[1746706930569,0.804,1972.2,1971.8,5.07138909]
[1746706930721,5.07058289,1972.2,1971.8,5.07138909]
[1746706931149,5.07058289,1972.2,1971.8,5.07132612]
[1746706931366,5.0701835,1972.4,1972.0,5.07097242]
[1746706931529,5.0701835,1972.4,1971.9,5.07111513]
[1746706931856,5.06988234,1972.5,1972.0,8.48211462]
[1746706932042,5.07005523,1972.4,1972.1,0.41126139]
[1746706932222,5.07005523,1972.4,1972.2,0.119095]
[1746706932422,5.07005523,1972.4,1972.2,0.41126139]
[1746706932755,5.06955537,1972.6,1972.3,0.11864818]
[1746706932960,5.06996552,1972.4,1972.3,0.11864818]
[1746706933118,5.06996552,1972.4,1972.3,0.52990957]
[1746706933319,5.06987238,1972.5,1972.3,0.11864818]
[1746706933523,5.06965921,1972.6,1972.3,0.11864818]
[1746706933745,5.06996552,1972.4,1972.3,0.11864818]
[1746706934066,5.06981758,1972.5,1972.3,0.11864818]
[1746706934431,5.06933771,1972.7,1972.3,0.11864818]
[1746706934654,12.40933771,1972.7,1972.3,5.07007242]
[1746706934855,12.40933771,1972.7,1972.4,0.80589178]
[1746706935069,7.34,1972.7,1972.4,5.87581597]
[1746706935269,20.7871082,1972.8,1972.5,5.480965]
[1746706935270,15.71797299,1972.8,1972.5,5.480965]
[1746706935470,15.71797299,1972.8,1972.7,5.0691945]
[1746706935783,15.71797299,1972.8,1972.7,5.48045589]
[1746706935944,15.71797299,1972.8,1972.7,11.96585991]
[1746706936146,15.71797299,1972.8,1972.7,3.52419155]
[1746706936395,20.78691054,1972.8,1972.7,3.11293016]
[1746706936564,15.71797299,1972.8,1972.7,3.11293016]
[1746706937277,15.71797299,1972.8,1972.7,8.18212466]
[1746706937449,15.71797299,1972.8,1972.7,8.59338605]
[1746706937791,15.71797299,1972.8,1972.7,3.52419155]
[1746706938310,15.71797299,1972.8,1972.7,8.18212466]
[1746706938948,15.71797299,1972.8,1972.7,8.59315988]
[1746706939488,15.71797299,1972.8,1972.7,20.25356597]
[1746706939796,13.18207739,1972.8,1972.7,20.47959623]
[1746706940573,13.18207739,1972.8,1972.7,41.54279723]
[1746706941286,0.05068937,1974.2,1973.1,3.0]
[1746706941453,0.05068937,1974.2,1973.5,4.10847386]
[1746706941651,5.06601365,1974.0,1973.6,0.10855998]
[1746706941959,5.94894452,1974.2,1973.8,3.0]
[1746706942169,0.88358937,1974.2,1973.6,0.10855998]
[1746706942374,5.11654549,1974.0,1973.9,0.10748738]
[1746706942672,5.06584557,1974.1,1973.7,5.06638199]
[1746706942673,0.05068937,1974.1,1973.7,5.06638199]
[1746706942996,12.45429237,1974.1,1973.7,5.06648978]
[1746706943201,12.45429237,1974.1,1973.8,0.10802175]
[1746706943413,7.38868937,1974.1,1973.8,0.10802175]
[1746706943893,0.05068937,1974.1,1973.9,0.10757581]
[1746706944099,5.06585612,1974.0,1973.9,0.10757581]
[1746706944258,5.06585612,1974.0,1973.5,8.45255909]
[1746706944459,5.06585612,1974.0,1973.9,0.10757581]
[1746706944659,0.05068937,1974.2,1973.6,0.0506658]
[1746706944883,0.05068937,1974.2,1973.9,5.17346337]
[1746706945194,5.06654724,1973.8,1973.5,0.38564173]
[1746706945372,5.11746118,1973.7,1973.4,0.8204]
[1746706945588,0.05068937,1973.7,1973.4,1.83135751]
[1746706945891,0.05068937,1973.7,1973.3,3.0]
[1746706946094,5.11734246,1973.7,1973.3,3.0]
[1746706946291,0.05068937,1973.7,1973.3,8.06752321]
[1746706946491,0.05068937,1973.7,1973.5,5.06703904]
[1746706946678,0.05068937,1973.7,1973.5,3.0]
[1746706946999,5.11732095,1973.7,1973.3,0.37172898]
[1746706947164,5.06697786,1973.6,1973.3,3.0]
[1746706947365,12.40297786,1973.6,1973.4,0.10989443]
[1746706947686,7.336,1973.6,1973.3,8.06753499]
[1746706947867,7.336,1973.6,1973.5,0.10935985]
[1746706948066,7.38668937,1973.6,1973.4,5.17706523]
[1746706948263,7.38668937,1973.6,1973.5,0.10935985]
[1746706948683,5.06755192,1973.4,1973.1,1.7341846]
[1746706948889,5.11885621,1973.1,1972.8,6.849]
[1746706949110,5.11885621,1973.1,1972.5,0.77855591]
[1746706949111,5.11905393,1973.1,1972.6,11.14931217]
[1746706949290,5.06941207,1972.7,1972.5,0.8277]
[1746706949489,0.05068937,1972.6,1972.5,0.37719519]
[1746706949665,0.05068937,1972.6,1972.3,0.9602846]
[1746706949860,5.07014715,1972.4,1972.1,3.37247386]
[1746706950060,0.05068937,1972.4,1972.1,8.4431093]
[1746706950317,5.12066187,1972.4,1972.1,3.37247386]
[1746706950464,17.52686356,1972.4,1971.9,6.82100804]
[1746706950669,5.0703474,1972.3,1971.9,0.9602846]
[1746706950887,12.45684622,1972.4,1972.0,3.0]
[1746706951091,7.38668937,1972.4,1972.1,0.9602846]
[1746706951301,12.45686367,1972.4,1972.1,0.9602846]
[1746706952168,0.05068937,1972.1,1971.6,9.25220043]
[1746706952363,0.05068937,1972.1,1971.7,6.03195553]
[1746706952364,5.12151768,1972.1,1971.7,6.03195553]
[1746706952761,5.12151768,1972.1,1971.8,3.0]
[1746706953165,5.12151768,1972.1,1971.7,0.9602846]
[1746706953166,5.07150826,1971.8,1971.7,0.9602846]
[1746706953398,5.071269,1971.9,1971.4,0.77855591]
[1746706953399,0.05068937,1971.7,1971.5,5.07222659]
[1746706953585,0.05068937,1971.7,1971.6,3.0]
[1746706953811,5.07215709,1971.6,1971.3,4.18137386]
[1746706954109,0.05068937,1971.6,1971.1,6.03349604]
[1746706954275,10.19517555,1971.6,1971.1,7.5601911]
[1746706954603,5.12284348,1971.6,1971.2,3.0]
[1746706954903,0.05068937,1971.6,1971.3,5.07275281]
[1746706955106,0.05068937,1971.6,1971.2,5.07288753]
[1746706955278,0.05068937,1971.6,1971.3,3.0]
[1746706955473,0.05068937,1971.6,1971.3,8.07260749]
[1746706955710,0.05068937,1971.6,1971.4,5.07251244]
[1746706955878,0.05068937,1971.6,1971.4,5.07250203]
[1746706956198,0.05068937,1971.6,1971.5,9.03256458]
[1746706956406,0.05068937,1971.8,1971.5,9.03240083]
[1746706956571,0.05068937,1971.8,1971.5,9.03236466]
[1746706956999,0.05068937,1971.8,1971.6,5.07198556]
[1746706957204,7.16168937,1971.8,1971.6,5.07198556]
[1746706957363,7.16168937,1971.8,1971.6,3.0]
[1746706957564,0.05068937,1972.2,1972.0,5.07089474]
[1746706957768,0.05068937,1972.2,1972.0,6.031073]
[1746706957984,0.05068937,1972.3,1972.0,5.0707884]
[1746706958377,0.05068937,1972.3,1972.1,5.07063543]
[1746706958594,7.16168937,1972.5,1972.1,1.01098962]
[1746706958799,5.07014378,1972.4,1972.0,8.07090392]
[1746706959099,12.23146301,1972.5,1972.0,3.0]
[1746706959263,12.23146301,1972.5,1971.8,3.0]
[1746706959463,5.07022258,1972.3,1971.7,3.0]
[1746706959666,5.0711976,1972.0,1971.7,3.0]
[1746706960004,0.05068937,1971.9,1971.6,8.97523073]
[1746706960210,0.05068937,1971.9,1971.6,8.97508792]
[1746706960367,0.05068937,1971.9,1971.8,3.0]
[1746706960571,0.05068937,1971.7,1971.5,0.05071301]
[1746706960792,0.05068937,1971.7,1971.4,8.87967711]
[1746706960995,5.12245691,1971.7,1971.4,0.8072502]
[1746706961306,5.07222793,1971.6,1971.2,5.07303151]
[1746706961600,0.05068937,1971.5,1971.2,5.07298395]
[1746706961767,5.07290765,1971.3,1970.9,5.07376902]
[1746706961969,0.05068937,1971.2,1970.9,5.58117232]
[1746706962204,0.05068937,1971.2,1971.1,3.0]
[1746706962512,0.05068937,1971.2,1971.0,5.07335097]
[1746706962678,0.05068937,1971.2,1971.1,3.0]
[1746706963073,0.05068937,1971.2,1971.0,5.07355533]
[1746706963268,0.05068937,1971.2,1971.1,3.0]
[1746706963767,0.05068937,1971.2,1970.9,8.58107282]
[1746706964071,5.12374574,1971.2,1970.9,3.5074033]
[1746706964266,5.12374574,1971.2,1970.8,5.44725562]
[1746706964267,0.05068937,1971.0,1970.8,8.44736507]
[1746706964469,0.05068937,1971.0,1970.9,5.07382414]
[1746706965614,0.05068937,1971.0,1970.8,3.0]
[1746706965973,0.05068937,1971.0,1970.7,8.44681252]
[1746706966180,0.05068937,1970.8,1970.6,0.430697]
[1746706966371,0.05068937,1970.8,1970.7,0.1134548]
[1746706967076,12.23777096,1970.8,1970.7,0.1134548]
[1746706967911,13.03507096,1970.8,1970.7,0.1134548]
[1746706969210,13.93928345,1970.8,1970.7,0.1134548]
[1746706969371,13.03507096,1970.8,1970.7,0.1134548]
[1746706969577,5.07433906,1970.7,1970.6,0.430697]
[1746706969986,5.62433906,1970.7,1970.6,0.430697]
[1746706971413,5.67502843,1970.7,1970.6,0.430697]
[1746706971791,6.50532843,1970.7,1970.6,0.430697]
[1746706972198,13.62132843,1970.7,1970.6,0.430697]
[1746706973633,5.89082545,1968.8,1967.8,0.7584]
[1746706973942,7.16668937,1968.8,1968.3,6.98542125]
[1746706974232,5.12992545,1968.8,1968.3,6.98542125]
[1746706974437,5.12992545,1968.8,1968.3,10.35789511]
[1746706974719,5.12992545,1968.8,1968.3,6.98542125]
[1746706975108,5.12992545,1968.8,1968.3,6.16322125]
[1746706975514,5.12992545,1968.8,1968.0,4.20537386]
[1746706975712,5.18069062,1968.8,1968.0,4.20537386]
[1746706975888,5.18069062,1968.8,1968.1,3.0]
[1746706976316,12.29869062,1968.8,1967.8,8.45424744]
[1746706976621,12.24792545,1968.8,1968.2,3.0]
[1746706976994,12.24792545,1968.8,1968.2,0.8013]
[1746706977437,12.79792545,1968.8,1967.8,0.8013]
[1746706977640,12.24792545,1968.8,1967.8,5.88307605]
[1746706977797,12.24792545,1968.8,1967.9,3.0]
[1746706977997,12.24792545,1968.8,1967.8,1.18467064]
[1746706978197,12.24792545,1968.8,1967.9,3.0]
[1746706978526,12.24792545,1968.8,1968.0,3.0]
[1746706978727,12.24792545,1968.8,1967.8,1.18467064]
[1746706978903,12.79792545,1968.8,1967.8,0.8013]
[1746706979107,13.59952545,1968.8,1967.6,0.8013]
[1746706979291,13.59952545,1968.8,1967.6,0.85211642]
[1746706979496,13.60152545,1968.8,1967.7,5.08200424]
[1746706979710,13.60152545,1968.8,1967.8,3.0]
[1746706979940,13.60152545,1968.8,1967.7,3.05081281]
[1746706980144,6.48152545,1968.8,1967.7,8.13275249]
[1746706980329,13.65229062,1968.8,1967.7,8.13275249]
[1746706980510,13.05152545,1968.8,1967.8,5.08171283]
[1746706980851,5.93152545,1968.8,1967.9,0.05080897]
[1746706981060,5.18069062,1968.8,1968.1,8.91397911]
[1746706981214,0.10145454,1968.8,1968.4,3.0]
[1746706981549,0.10145454,1968.8,1968.6,0.7511]
[1746706981550,0.05068937,1968.8,1968.6,0.7511]
[1746706981713,0.05068937,1968.9,1968.6,0.7511]